fUST/lending_fUST_20250627
["ID","MTS","AMOUNT","RATE_DAILY","PERIOD"]
[367995986,1750987841399,-460.0,0.0001964,2]
[367995988,1750987841408,-460.0,0.0001964,2]
[367995990,1750987841417,-460.0,0.0001964,2]
[367995992,1750987841426,-460.0,0.0001964,2]
[367995994,1750987841435,-460.0,0.0001964,2]
[367995996,1750987841444,-460.0,0.0001964,2]
[367995998,1750987841454,-460.0,0.0001964,2]
[367996000,1750987841463,-460.0,0.0001964,2]
[367996002,1750987841473,-460.0,0.0001964,2]
[367996004,1750987841482,-471.13732439,0.0001964,2]
[367996006,1750987841493,-309.80290762,0.0001964,2]
[367997081,1750988020445,203.9304417,0.00024657,120]
[367997082,1750988157984,173.715033,0.00013699,2]
[367997084,1750988284633,215.66847468,0.000222,69]
[367997085,1750988390944,210.5141604,0.00024649,120]
[367997089,1750988848132,-211.1462642,0.00018523,2]
[367997090,1750988848155,-208.8239997,0.00018695,2]
[367997091,1750988848176,-160.0,0.00018993,2]
[367997092,1750988848198,-50.57488977,0.00018998,2]
[367997095,1750988946172,-1149.42511023,0.00018998,2]
[367997096,1750988946193,-300.0,0.00018998,2]
[367997097,1750988946213,-300.0,0.00018999,2]
[367997098,1750988946234,-300.0,0.00018999,2]
[367997099,1750988946254,-300.0,0.00018999,2]
[367997100,1750988946275,-300.0,0.00018999,2]
[367997101,1750988946296,-1200.0,0.00018999,2]
[367997102,1750988946315,-10020.392152,0.00019,2]
[367997103,1750988946336,-225.69904643,0.00019151,2]
[367997104,1750988946357,-460.0,0.00019178,2]
[367997105,1750988946378,-460.0,0.00019178,2]
[367997106,1750988946398,-460.0,0.00019178,2]
[367997107,1750988946424,-485.61,0.00019178,2]
[367997108,1750988946445,-460.0,0.00019178,2]
[367997109,1750988946469,-515.69,0.00019178,2]
[367997110,1750988946489,-184.390969,0.00019178,2]
[367997111,1750988946510,-50000.0,0.00019178,2]
[367997112,1750988946530,-225.69904644,0.00019207,2]
[367997113,1750988946551,-2633.52785221,0.00019278,2]
[367997114,1750988946572,-366.0585355,0.000193,2]
[367997115,1750988946592,-159.99159111,0.00019329,2]
[367997116,1750988946611,-371.0045206,0.000194,2]
[367997117,1750988946631,-156.1272779,0.000194,2]
[367997118,1750988946651,-180.3394797,0.000194,2]
[367997119,1750988946671,-366.0585355,0.000194,2]
[367997120,1750988946691,-951.43772023,0.00019432,2]
[367997121,1750988946712,-500.0,0.00019432,2]
[367997122,1750988946732,-500.0,0.00019432,2]
[367997123,1750988946752,-500.0,0.00019432,2]
[367997124,1750988946773,-500.0,0.00019432,2]
[367997125,1750988946795,-312.8247973,0.00019432,2]
[367997126,1750988946815,-500.0,0.00019432,2]
[367997127,1750988946834,-511.13860579,0.00019432,2]
[367997128,1750988946854,-500.0,0.00019432,2]
[367997129,1750988946876,-500.0,0.00019432,2]
[367997130,1750988946896,-500.0,0.00019432,2]
[367997131,1750988946917,-291.32670292,0.00019432,2]
[367997132,1750988946936,-500.0,0.00019432,2]
[367997133,1750988946956,-500.0,0.00019432,2]
[367997134,1750988946977,-257.76110712,0.00019432,2]
[367997135,1750988946998,-500.0,0.00019432,2]
[367997136,1750988947018,-500.0,0.00019432,2]
[367997137,1750988947042,-500.0,0.00019432,2]
[367997138,1750988947063,-500.0,0.00019432,2]
[367997139,1750988947083,-500.0,0.00019432,2]
[367997140,1750988947104,-154.27289891,0.00019432,2]
[367997141,1750988947124,-500.0,0.00019432,2]
[367997142,1750988947145,-500.0,0.00019432,2]
[367997143,1750988947164,-233.66999472,0.00019432,2]
[367997144,1750988947184,-500.0,0.00019432,2]
[367997145,1750988947206,-500.0,0.00019432,2]
[367997146,1750988947227,-500.0,0.00019432,2]
[367997147,1750988947248,-500.0,0.00019432,2]
[367997148,1750988947268,-632.40798105,0.00019432,2]
[367997149,1750988947288,-500.0,0.00019432,2]
[367997150,1750988947310,-500.0,0.00019432,2]
[367997151,1750988947334,-500.0,0.00019432,2]
[367997152,1750988947354,-500.0,0.00019432,2]
[367997153,1750988947375,-500.0,0.00019432,2]
[367997154,1750988947397,-594.02335295,0.00019432,2]
[367997155,1750988947419,-500.0,0.00019432,2]
[367997156,1750988947443,-500.0,0.00019432,2]
[367997157,1750988947465,-500.0,0.00019432,2]
[367997158,1750988947488,-500.0,0.00019432,2]
[367997159,1750988947511,-500.0,0.00019432,2]
[367997160,1750988947535,-500.0,0.00019432,2]
[367997161,1750988947559,-500.0,0.00019432,2]
[367997162,1750988947581,-306.5605693,0.00019432,2]
[367997163,1750988947602,-500.0,0.00019432,2]
[367997164,1750988947621,-500.0,0.00019432,2]
[367997165,1750988947642,-500.0,0.00019432,2]
[367997166,1750988947664,-500.0,0.00019432,2]
[367997167,1750988947875,-500.0,0.00019432,2]
[367997168,1750988947916,-500.0,0.00019432,2]
[367997169,1750988947938,-405.57967557,0.00019432,2]
[367997170,1750988947961,-500.0,0.00019432,2]
[367997171,1750988947984,-500.0,0.00019432,2]
[367997172,1750988948005,-500.0,0.00019432,2]
[367997173,1750988948027,-500.0,0.00019432,2]
[367997174,1750988948048,-500.0,0.00019432,2]
[367997175,1750988948069,-500.0,0.00019432,2]
[367997176,1750988948090,-500.0,0.00019432,2]
[367997177,1750988948114,-500.0,0.00019432,2]
[367997178,1750988948136,-500.0,0.00019432,2]
[367997179,1750988948156,-523.57494012,0.00019432,2]
[367997180,1750988948177,-500.0,0.00019432,2]
[367997181,1750988948200,-500.0,0.00019432,2]
[367997182,1750988948223,-500.0,0.00019432,2]
[367997183,1750988948245,-599.94402258,0.00019432,2]
[367997184,1750988948269,-500.0,0.00019432,2]
[367997185,1750988948295,-500.0,0.00019432,2]
[367997186,1750988948318,-176.52437163,0.00019432,2]
[367997187,1750988948341,-500.0,0.00019432,2]
[367997188,1750988948363,-500.0,0.00019432,2]
[367997189,1750988948387,-500.0,0.00019432,2]
[367997190,1750988948411,-500.0,0.00019432,2]
[367997191,1750988948439,-500.0,0.00019432,2]
[367997192,1750988948461,-500.0,0.00019432,2]
[367997193,1750988948489,-500.0,0.00019432,2]
[367997194,1750988948511,-500.0,0.00019432,2]
[367997195,1750988948536,-500.0,0.00019432,2]
[367997196,1750988948560,-500.0,0.00019432,2]
[367997197,1750988948582,-500.0,0.00019432,2]
[367997198,1750988948606,-500.0,0.00019432,2]
[367997199,1750988948629,-500.0,0.00019432,2]
[367997200,1750988948651,-264.52902875,0.00019432,2]
[367997201,1750988948671,-500.0,0.00019432,2]
[367997202,1750988948693,-500.0,0.00019432,2]
[367997203,1750988948716,-500.0,0.00019432,2]
[367997204,1750988948737,-500.0,0.00019432,2]
[367997205,1750988948760,-500.0,0.00019432,2]
[367997206,1750988948783,-500.0,0.00019432,2]
[367997207,1750988948804,-500.0,0.00019432,2]
[367997208,1750988948827,-500.0,0.00019432,2]
[367997209,1750988948848,-500.0,0.00019432,2]
[367997210,1750988948868,-500.0,0.00019432,2]
[367997211,1750988948891,-500.0,0.00019432,2]
[367997212,1750988948914,-500.0,0.00019432,2]
[367997213,1750988948937,-500.0,0.00019432,2]
[367997214,1750988948959,-251.47217989,0.00019432,2]
[367997215,1750988948982,-500.0,0.00019432,2]
[367997216,1750988949004,-500.0,0.00019432,2]
[367997217,1750988949028,-500.0,0.00019432,2]
[367997218,1750988949050,-500.0,0.00019432,2]
[367997219,1750988949072,-500.0,0.00019432,2]
[367997220,1750988949098,-500.0,0.00019432,2]
[367997221,1750988949120,-500.0,0.00019432,2]
[367997222,1750988949144,-500.0,0.00019432,2]
[367997223,1750988949165,-500.0,0.00019432,2]
[367997224,1750988949188,-500.0,0.00019432,2]
[367997225,1750988949209,-500.0,0.00019432,2]
[367997226,1750988949232,-356.57626637,0.00019432,2]
[367997227,1750988949257,-500.0,0.00019432,2]
[367997228,1750988949280,-500.0,0.00019432,2]
[367997229,1750988949304,-500.0,0.00019432,2]
[367997230,1750988949326,-500.0,0.00019432,2]
[367997231,1750988949347,-500.0,0.00019432,2]
[367997232,1750988949369,-464.93653188,0.00019432,2]
[367997233,1750988949390,-251.74613172,0.00019432,2]
[367997234,1750988951100,-682.25,0.00019178,2]
[367997235,1750988951128,-464.54550246,0.00019178,2]
[367997236,1750988951155,-248.25386828,0.00019432,2]
[367997237,1750988951181,-500.0,0.00019432,2]
[367997238,1750988951207,-500.0,0.00019432,2]
[367997239,1750988951230,-500.0,0.00019432,2]
[367997240,1750988951255,-584.94766986,0.00019432,2]
[367997241,1750988951283,-500.0,0.00019432,2]
[367997242,1750988951309,-500.0,0.00019432,2]
[367997243,1750988951336,-500.0,0.00019432,2]
[367997244,1750988951360,-500.0,0.00019432,2]
[367997245,1750988951385,-500.0,0.00019432,2]
[367997246,1750988951412,-500.0,0.00019432,2]
[367997247,1750988951439,-500.0,0.00019432,2]
[367997248,1750988951463,-500.0,0.00019432,2]
[367997249,1750988951490,-500.0,0.00019432,2]
[367997250,1750988951515,-500.0,0.00019432,2]
[367997251,1750988951542,-500.0,0.00019432,2]
[367997252,1750988951568,-500.0,0.00019432,2]
[367997253,1750988951593,-500.0,0.00019432,2]
[367997254,1750988951619,-500.0,0.00019432,2]
[367997255,1750988951644,-190.0,0.00019432,2]
[367997256,1750988951667,-500.0,0.00019432,2]
[367997257,1750988951693,-440.23352942,0.00019432,2]
[367997258,1750988951720,-500.0,0.00019432,2]
[367997259,1750988951745,-500.0,0.00019432,2]
[367997260,1750988951770,-500.0,0.00019432,2]
[367997261,1750988951795,-500.0,0.00019432,2]
[367997262,1750988951820,-500.0,0.00019432,2]
[367997263,1750988951843,-46865.1788803,0.00019433,2]
[367997264,1750988951867,-460.0,0.00019435,2]
[367997265,1750988951891,-460.0,0.00019435,2]
[367997266,1750988951915,-475.65851753,0.00019435,2]
[367997267,1750988951939,-166.40303637,0.00019435,2]
[367997268,1750988951962,-460.0,0.00019435,2]
[367997269,1750988951985,-463.69160738,0.00019435,2]
[367997270,1750988952008,-470.25643958,0.00019435,2]
[367997271,1750988952031,-464.68313937,0.00019435,2]
[367997272,1750988952055,-429.22124956,0.00019435,2]
[367997273,1750988952077,-441.75538126,0.00019435,2]
[367997274,1750988952101,-433.08403681,0.00019435,2]
[367997275,1750988952124,-469.33804227,0.00019435,2]
[367997276,1750988952147,-471.39339694,0.00019435,2]
[367997277,1750988952171,-460.0,0.00019435,2]
[367997278,1750988952194,-460.0,0.00019435,2]
[367997279,1750988952218,-462.03039493,0.00019435,2]
[367997280,1750988952239,-462.53439296,0.00019435,2]
[367997281,1750988952258,-389.28401703,0.00019435,2]
[367997282,1750988952278,-466.15131157,0.00019435,2]
[367997283,1750988952300,-238.82,0.00019435,2]
[367997284,1750988952320,-460.0,0.00019435,2]
[367997285,1750988952342,-462.34202879,0.00019435,2]
[367997286,1750988952363,-368.98484053,0.00019435,2]
[367997287,1750988952599,-465.28147782,0.00019435,2]
[367997288,1750988952636,-500.0,0.00019435,2]
[367997289,1750988952657,-460.0,0.00019452,2]
[367997290,1750988952677,-324.16587086,0.00019452,2]
[367997291,1750988952697,-460.0,0.00019452,2]
[367997292,1750988952719,-485.61,0.00019452,2]
[367997293,1750988952740,-470.08542819,0.00019452,2]
[367997294,1750988952762,-515.69,0.00019452,2]
[367997295,1750988952786,-682.25,0.00019452,2]
[367997296,1750988952811,-366.0585355,0.000195,2]
[367997297,1750988952834,-533.05,0.0001952,3]
[367997298,1750988952858,-266.53,0.0001952,3]
[367997299,1750988952878,-799.6,0.0001952,3]
[367997300,1750988952898,-607.63,0.0001952,3]
[367997301,1750988952918,-744.29,0.00019523,3]
[367997302,1750988952939,-461.14844724,0.00019529,2]
[367997303,1750988952959,-460.0,0.00019529,2]
[367997304,1750988952983,-460.0,0.00019529,2]
[367997305,1750988953006,-2884.65,0.00019529,2]
[367997306,1750988953028,-2541.91,0.00019529,2]
[367997307,1750988953050,-460.0,0.00019529,2]
[367997308,1750988953071,-460.0,0.00019529,2]
[367997309,1750988953093,-460.0,0.00019529,2]
[367997310,1750988953115,-2056.95,0.00019529,2]
[367997311,1750988953137,-1061.16,0.00019529,2]
[367997312,1750988953159,-2254.67,0.00019529,2]
[367997313,1750988953179,-597.41,0.00019529,2]
[367997314,1750988953201,-677.51,0.00019529,2]
[367997315,1750988953225,-465.47523577,0.00019529,2]
[367997316,1750988953248,-895.49,0.00019529,2]
[367997317,1750988953270,-2323.68,0.00019529,2]
[367997318,1750988953292,-2000.89,0.00019529,2]
[367997319,1750988953313,-460.0,0.00019529,2]
[367997320,1750988953334,-594.98,0.00019529,2]
[367997321,1750988953354,-460.0,0.00019529,2]
[367997322,1750988953376,-467.51081144,0.00019529,2]
[367997323,1750988953398,-1696.3,0.00019529,2]
[367997324,1750988953418,-810.43,0.00019529,2]
[367997325,1750988953444,-994.27,0.00019529,2]
[367997326,1750988953465,-460.0,0.0001953,2]
[367997327,1750988953487,-460.74293357,0.0001953,2]
[367997328,1750988953509,-460.0,0.0001953,2]
[367997329,1750988953530,-460.0,0.0001953,2]
[367997330,1750988953550,-460.0,0.0001953,2]
[367997331,1750988953570,-460.0,0.0001953,2]
[367997332,1750988953591,-460.0,0.00019531,2]
[367997333,1750988953613,-460.0,0.00019531,2]
[367997334,1750988953636,-460.0,0.00019531,2]
[367997335,1750988953657,-461.75892076,0.00019531,2]
[367997336,1750988953678,-464.50622686,0.00019531,2]
[367997337,1750988953699,-462.42147707,0.00019531,2]
[367997338,1750988953721,-465.2401065,0.00019531,2]
[367997339,1750988953742,-460.0,0.00019531,2]
[367997340,1750988953763,-460.0,0.00019531,2]
[367997341,1750988953784,-402.02588828,0.00019531,2]
[367997342,1750988953805,-480.0920643,0.00019531,2]
[367997343,1750988953825,-460.0,0.00019531,2]
[367997344,1750988953846,-478.43493434,0.00019531,2]
[367997345,1750988953867,-460.0,0.00019531,2]
[367997346,1750988953887,-468.16851035,0.00019531,2]
[367997347,1750988953908,-664.2,0.00019531,2]
[367997348,1750988953929,-500.13,0.00019531,2]
[367997349,1750988953950,-460.0,0.00019531,2]
[367997350,1750988953974,-460.0,0.00019531,2]
[367997351,1750988953995,-460.0,0.00019531,2]
[367997352,1750988954016,-460.0,0.00019531,2]
[367997353,1750988954036,-460.0,0.00019531,2]
[367997354,1750988954057,-569.96699719,0.00019531,2]
[367997355,1750988954078,-337.21001313,0.00019531,2]
[367997356,1750988954098,-460.0,0.00019531,2]
[367997357,1750988954118,-460.0,0.00019531,2]
[367997358,1750988954139,-460.0,0.00019531,2]
[367997359,1750988954160,-460.0,0.00019531,2]
[367997360,1750988954181,-913.99,0.00019531,2]
[367997361,1750988954203,-797.8,0.00019531,2]
[367997362,1750988954226,-472.16,0.00019531,2]
[367997363,1750988954246,-460.0,0.00019531,2]
[367997364,1750988954267,-460.0,0.00019531,2]
[367997365,1750988954287,-460.0,0.00019531,2]
[367997366,1750988954308,-460.0,0.00019531,2]
[367997367,1750988954330,-2490.92,0.00019531,2]
[367997368,1750988954351,-462.20563977,0.00019531,2]
[367997369,1750988954371,-460.0,0.00019531,2]
[367997370,1750988954392,-460.0,0.00019531,2]
[367997371,1750988954414,-460.0,0.00019531,2]
[367997372,1750988954436,-494.7,0.00019531,2]
[367997373,1750988954457,-628.16,0.00019531,2]
[367997374,1750988954480,-837.78,0.00019531,2]
[367997375,1750988954502,-460.0,0.00019531,2]
[367997376,1750988954523,-465.19434286,0.00019531,2]
[367997377,1750988954544,-460.0,0.00019531,2]
[367997378,1750988954565,-460.0,0.00019531,2]
[367997379,1750988954585,-460.0,0.00019531,2]
[367997380,1750988954606,-460.0,0.00019531,2]
[367997381,1750988954627,-347.936224,0.00019531,2]
[367997382,1750988954649,-460.0,0.00019531,2]
[367997383,1750988954670,-460.0,0.00019531,2]
[367997384,1750988954690,-574.63,0.00019531,2]
[367997385,1750988954712,-460.0,0.00019531,2]
[367997386,1750988954734,-788.31,0.00019531,2]
[367997387,1750988954755,-460.0,0.00019531,2]
[367997388,1750988954776,-504.37738238,0.00019531,2]
[367997389,1750988954797,-460.0,0.00019531,2]
[367997390,1750988954817,-460.0,0.00019531,2]
[367997391,1750988954839,-800.34,0.00019531,2]
[367997392,1750988954860,-460.0,0.00019531,2]
[367997393,1750988954885,-460.0,0.00019531,2]
[367997394,1750988954906,-463.32,0.00019531,2]
[367997395,1750988954931,-465.41711755,0.00019531,2]
[367997396,1750988954954,-460.0,0.00019531,2]
[367997397,1750988954981,-841.36,0.00019531,2]
[367997398,1750988955006,-841.36,0.00019531,2]
[367997399,1750988955028,-442.39152768,0.00019531,2]
[367997400,1750988955051,-841.36,0.00019531,2]
[367997401,1750988955073,-841.36,0.00019531,2]
[367997402,1750988955095,-841.36,0.00019531,2]
[367997403,1750988955117,-1048.54,0.00019531,2]
[367997404,1750988955139,-862.03,0.00019531,2]
[367997405,1750988955163,-460.0,0.00019531,2]
[367997406,1750988955185,-560.05,0.00019531,2]
[367997407,1750988955208,-740.86,0.00019531,2]
[367997408,1750988955233,-1344.07,0.00019531,2]
[367997409,1750988955253,-460.0,0.00019531,2]
[367997410,1750988955275,-460.0,0.00019531,2]
[367997411,1750988955294,-508.51357748,0.00019531,2]
[367997412,1750988955317,-460.0,0.00019531,2]
[367997413,1750988955339,-979.43,0.00019531,2]
[367997414,1750988955361,-895.41,0.00019531,2]
[367997415,1750988955384,-461.97802635,0.00019531,2]
[367997416,1750988955405,-464.75915358,0.00019531,2]
[367997417,1750988955429,-460.0,0.00019531,2]
[367997418,1750988955452,-460.0,0.00019531,2]
[367997419,1750988955474,-463.13074055,0.00019531,2]
[367997420,1750988955495,-745.27,0.00019531,2]
[367997421,1750988955518,-460.0,0.00019531,2]
[367997422,1750988955540,-460.0,0.00019531,2]
[367997423,1750988955563,-843.89,0.00019531,2]
[367997424,1750988955585,-460.0,0.00019531,2]
[367997425,1750988955614,-465.67539578,0.00019531,2]
[367997426,1750988955635,-691.76,0.00019531,2]
[367997427,1750988955658,-460.0,0.00019532,2]
[367997428,1750988955685,-473.14771853,0.00019532,2]
[367997429,1750988955707,-460.0,0.00019532,2]
[367997430,1750988955730,-465.23096025,0.00019532,2]
[367997431,1750988955882,-460.0,0.00019532,2]
[367997432,1750988955904,-500.76,0.00019532,2]
[367997433,1750988955926,-460.0,0.00019532,2]
[367997434,1750988955946,-460.0,0.00019532,2]
[367997435,1750988955967,-448.88021558,0.00019532,2]
[367997436,1750988955989,-528.4,0.00019532,2]
[367997437,1750988956010,-460.0,0.00019532,2]
[367997438,1750988956033,-1223.73,0.00019532,2]
[367997439,1750988956055,-460.0,0.00019532,2]
[367997440,1750988956077,-460.0,0.00019532,2]
[367997441,1750988956098,-503.17,0.00019532,2]
[367997442,1750988956121,-565.36,0.00019532,2]
[367997443,1750988956145,-5304.87,0.00019532,2]
[367997444,1750988956167,-841.36,0.00019532,2]
[367997445,1750988956189,-841.36,0.00019532,2]
[367997446,1750988956212,-841.36,0.00019532,2]
[367997447,1750988956235,-460.0,0.00019532,2]
[367997448,1750988956257,-569.04,0.00019532,2]
[367997449,1750988956279,-1077.24,0.00019532,2]
[367997450,1750988956301,-460.0,0.00019532,2]
[367997451,1750988956322,-460.0,0.00019532,2]
[367997452,1750988956344,-850.44,0.00019532,2]
[367997453,1750988956366,-2075.5,0.00019532,2]
[367997454,1750988956387,-460.0,0.00019533,2]
[367997455,1750988956411,-460.0,0.00019533,2]
[367997456,1750988956444,-460.0,0.00019533,2]
[367997457,1750988956467,-460.0,0.00019533,2]
[367997458,1750988956489,-460.0,0.00019533,2]
[367997459,1750988956510,-161.17117091,0.00019533,2]
[367997460,1750988956533,-460.0,0.00019533,2]
[367997461,1750988956554,-460.0,0.00019533,2]
[367997462,1750988956576,-460.0,0.00019533,2]
[367997463,1750988956598,-460.0,0.00019533,2]
[367997464,1750988956619,-460.0,0.00019533,2]
[367997465,1750988956641,-460.0,0.00019533,2]
[367997466,1750988956662,-402.07777021,0.00019533,2]
[367997467,1750988956684,-460.0,0.00019533,2]
[367997468,1750988956705,-242.45021794,0.00019533,2]
[367997469,1750988956727,-460.0,0.00019533,2]
[367997470,1750988956749,-460.0,0.00019533,2]
[367997471,1750988956771,-460.0,0.00019533,2]
[367997472,1750988956791,-411.68533089,0.00019533,2]
[367997473,1750988956815,-464.44589036,0.00019533,2]
[367997474,1750988956835,-395.01720271,0.00019533,2]
[367997475,1750988956856,-463.61517584,0.00019533,2]
[367997476,1750988956878,-460.0,0.00019533,2]
[367997477,1750988956898,-460.0,0.00019533,2]
[367997478,1750988956919,-462.71828396,0.00019533,2]
[367997479,1750988956940,-433.17738751,0.00019533,2]
[367997480,1750988956961,-460.0,0.00019533,2]
[367997481,1750988956982,-460.0,0.00019533,2]
[367997482,1750988957003,-546.83178283,0.00019533,2]
[367997483,1750988957025,-460.0,0.00019533,2]
[367997484,1750988957047,-478.60775783,0.00019533,2]
[367997485,1750988957068,-460.0,0.00019533,2]
[367997486,1750988957088,-460.0,0.00019533,2]
[367997487,1750988957109,-369.98760867,0.00019533,2]
[367997488,1750988957129,-460.0,0.00019533,2]
[367997489,1750988957149,-760.87,0.00019533,2]
[367997490,1750988957170,-460.0,0.00019533,2]
[367997491,1750988957192,-461.89558697,0.00019533,2]
[367997492,1750988957213,-461.72499598,0.00019533,2]
[367997493,1750988957233,-462.70559195,0.00019533,2]
[367997494,1750988957253,-460.0,0.00019533,2]
[367997495,1750988957274,-460.0,0.00019533,2]
[367997496,1750988957295,-464.29717156,0.00019533,2]
[367997497,1750988957315,-462.12288505,0.00019533,2]
[367997498,1750988957337,-465.58660463,0.00019533,2]
[367997499,1750988957357,-460.0,0.00019533,2]
[367997500,1750988957378,-460.0,0.00019533,2]
[367997501,1750988957399,-460.0,0.00019533,2]
[367997502,1750988957421,-460.0,0.00019533,2]
[367997503,1750988957446,-624.06,0.00019533,2]
[367997504,1750988957467,-460.0,0.00019533,2]
[367997505,1750988957491,-460.0,0.00019533,2]
[367997506,1750988957514,-580.09,0.00019533,2]
[367997507,1750988957536,-493.06269394,0.00019533,2]
[367997508,1750988957559,-460.0,0.00019533,2]
[367997509,1750988957580,-505.92484511,0.00019533,2]
[367997510,1750988957603,-460.0,0.00019533,2]
[367997511,1750988957626,-898.76,0.00019533,2]
[367997512,1750988957647,-601.84,0.00019533,2]
[367997513,1750988957669,-460.0,0.00019533,2]
[367997514,1750988957690,-687.03,0.00019533,2]
[367997515,1750988957713,-463.8,0.00019533,2]
[367997516,1750988957734,-460.0,0.00019533,2]
[367997517,1750988957757,-560.98375565,0.00019533,2]
[367997518,1750988957779,-460.0,0.00019533,2]
[367997519,1750988957800,-460.0,0.00019533,2]
[367997520,1750988957823,-460.0,0.00019533,2]
[367997521,1750988957846,-630.25,0.00019533,2]
[367997522,1750988957867,-460.0,0.00019533,2]
[367997523,1750988957890,-460.0,0.00019533,2]
[367997524,1750988957912,-460.0,0.00019533,2]
[367997525,1750988957933,-717.1,0.00019533,2]
[367997526,1750988957954,-460.0,0.00019533,2]
[367997527,1750988957975,-466.2865702,0.00019533,2]
[367997528,1750988957996,-471.23908577,0.00019533,2]
[367997529,1750988958017,-883.49,0.00019533,2]
[367997530,1750988958040,-460.0,0.00019533,2]
[367997531,1750988958063,-747.33,0.00019533,2]
[367997532,1750988958086,-466.86146244,0.00019533,2]
[367997533,1750988958107,-460.0,0.00019533,2]
[367997534,1750988958129,-460.0,0.00019533,2]
[367997535,1750988958151,-463.83841253,0.00019533,2]
[367997536,1750988958172,-460.0,0.00019533,2]
[367997537,1750988958197,-1128.65,0.00019533,2]
[367997538,1750988958219,-460.0,0.00019533,2]
[367997539,1750988958242,-460.0,0.00019533,2]
[367997540,1750988958264,-460.0,0.00019533,2]
[367997541,1750988958288,-460.0,0.00019533,2]
[367997542,1750988958340,-460.0,0.00019533,2]
[367997543,1750988958362,-462.7952182,0.00019533,2]
[367997544,1750988958384,-460.0,0.00019533,2]
[367997545,1750988958408,-467.69950568,0.00019533,2]
[367997546,1750988958429,-460.0,0.00019533,2]
[367997547,1750988958454,-652.23,0.00019533,2]
[367997548,1750988958476,-460.0,0.00019533,2]
[367997549,1750988958497,-460.0,0.00019533,2]
[367997550,1750988958519,-460.0,0.00019533,2]
[367997551,1750988958540,-460.0,0.00019533,2]
[367997552,1750988958563,-953.4,0.00019533,2]
[367997553,1750988958584,-289.10847094,0.00019533,2]
[367997554,1750988958605,-460.0,0.00019533,2]
[367997555,1750988958627,-728.81,0.00019533,2]
[367997556,1750988958648,-468.43576269,0.00019533,2]
[367997557,1750988958670,-460.0,0.00019533,2]
[367997558,1750988958690,-464.25299199,0.00019533,2]
[367997559,1750988958713,-841.36,0.00019533,2]
[367997560,1750988958735,-1190.85,0.00019533,2]
[367997561,1750988958757,-460.0,0.00019533,2]
[367997562,1750988958778,-460.0,0.00019533,2]
[367997563,1750988958801,-687.22,0.00019533,2]
[367997564,1750988958822,-460.0,0.00019533,2]
[367997565,1750988958844,-460.0,0.00019533,2]
[367997566,1750988958867,-669.92,0.00019533,2]
[367997567,1750988958888,-465.29473892,0.00019533,2]
[367997568,1750988958908,-464.67565507,0.00019533,2]
[367997569,1750988958930,-460.0,0.00019533,2]
[367997570,1750988958951,-1077.08,0.00019533,2]
[367997571,1750988958974,-460.0,0.00019533,2]
[367997572,1750988958995,-493.99,0.00019533,2]
[367997573,1750988959017,-460.0,0.00019533,2]
[367997574,1750988959040,-467.12049993,0.00019533,2]
[367997575,1750988959062,-460.74009052,0.00019534,2]